fUST/lending_fUST_20260103
["ID","MTS","AMOUNT","RATE_DAILY","PERIOD"]
[400342984,1767397832864,-500.0,0.00012025,2]
[400342985,1767397832875,-389.58231707,0.00012025,2]
[400342986,1767397832885,-500.0,0.00012025,2]
[400342987,1767397832895,-500.0,0.00012025,2]
[400342988,1767397832904,-500.0,0.00012025,2]
[400342989,1767397832915,-262.46691898,0.00012025,2]
[400342990,1767397832928,-237.53308102,0.00012025,2]
[400342991,1767397832938,-500.0,0.00012025,2]
[400342992,1767397832947,-120.59564898,0.00012025,2]
[400343002,1767397838125,-379.40435102,0.00012025,2]
[400343003,1767397838136,-500.0,0.00012025,2]
[400343004,1767397838146,-500.0,0.00012025,2]
[400343005,1767397838156,-500.0,0.00012025,2]
[400343006,1767397838167,-500.0,0.00012025,2]
[400343007,1767397838177,-500.0,0.00012025,2]
[400343008,1767397838187,-450.0,0.00012025,2]
[400343009,1767397838197,-500.0,0.00012025,2]
[400343010,1767397838207,-500.0,0.00012025,2]
[400343011,1767397838217,-500.0,0.00012025,2]
[400343012,1767397838227,-500.0,0.00012025,2]
[400343013,1767397838237,-600.0,0.00012025,2]
[400343014,1767397838247,-500.0,0.00012025,2]
[400343015,1767397838257,-500.0,0.00012025,2]
[400343016,1767397838267,-19100.21846735,0.00012026,2]
[400343017,1767397838571,-2319.49385335,0.00012026,2]
[400343018,1767397838591,-3922.0167081,0.00012026,2]
[400343019,1767397838603,-22820.21664996,0.00012026,2]
[400343020,1767397838615,-800.04634813,0.00012026,2]
[400343042,1767397840417,-1144.60886202,0.00012026,2]
[400343046,1767397840543,-3886.74185346,0.00012026,2]
[400343068,1767397846315,-1767.66666667,0.00012026,2]
[400343069,1767397846346,-4495.0,0.00012026,2]
[400343223,1767399038776,-1956.22946859,9.909e-05,2]
[400343262,1767399040586,-340.43825727,9.909e-05,2]
[400343696,1767399046538,-1571.82224678,9.909e-05,2]
[400343735,1767399046970,-1087.72837631,9.909e-05,2]
[400343737,1767399051541,5000.0,9.757e-05,2]
[400343747,1767399276980,5000.0,9.757e-05,2]
[400343751,1767399501358,5000.0,9.757e-05,2]
[400343759,1767399727622,5000.0,9.757e-05,2]
[400343760,1767399750601,5000.0,9.757e-05,2]
[400343761,1767399777211,5000.0,9.757e-05,2]
[400343762,1767399800287,5000.0,9.757e-05,2]
[400343765,1767399824023,5000.0,9.757e-05,2]
[400343766,1767399847087,5000.0,9.757e-05,2]
[400343769,1767399870479,5000.0,9.757e-05,2]
[400343770,1767399893348,5000.0,9.757e-05,2]
[400343771,1767399916319,5000.0,9.757e-05,2]
[400343775,1767399940398,5000.0,9.757e-05,2]
[400343793,1767399963621,5000.0,9.757e-05,2]
[400343797,1767399986578,5000.0,9.757e-05,2]
[400343798,1767400009982,5000.0,9.757e-05,2]
[400343800,1767400033667,5000.0,9.757e-05,2]
[400343801,1767400056879,5000.0,9.757e-05,2]
[400343803,1767400080592,5000.0,9.757e-05,2]
[400343805,1767400103499,5000.0,9.757e-05,2]
[400343807,1767400119325,5000.0,9.757e-05,2]
[400343808,1767400127144,5000.0,9.757e-05,2]
[400343809,1767400142923,5000.0,9.757e-05,2]
[400343810,1767400151599,5000.0,9.757e-05,2]
[400343811,1767400167838,5000.0,9.757e-05,2]
[400343812,1767400175546,5000.0,9.757e-05,2]
[400343813,1767400198692,5000.0,9.757e-05,2]
[400343814,1767400221870,5000.0,9.757e-05,2]
[400343844,1767400232527,-269.32608276,9.898e-05,2]
[400343846,1767400232538,-350.52303828,0.0001,2]
[400343849,1767400232556,-649.47696172,0.0001,2]
[400343851,1767400232567,-250.8209297,0.00010316,2]
[400343853,1767400232576,-707.715,0.0001037,2]
[400343855,1767400232586,-469.401711,0.00010379,2]
[400343857,1767400232595,-437.8,0.00010821,2]
[400343859,1767400232606,-378.45,0.00011124,2]
[400343861,1767400232616,-1928.69915721,0.000112,2]
[400343863,1767400232626,-300.0,0.00011547,2]
[400343864,1767400232636,-3586.52617247,0.00011548,2]
[400343866,1767400232646,-500.0,0.00011548,2]
[400343867,1767400232655,-500.0,0.00011685,2]
[400343868,1767400232665,-500.0,0.00011721,2]
[400343869,1767400232675,-500.0,0.00011721,2]
[400343871,1767400232685,-515.89027537,0.00011721,2]
[400343872,1767400232695,-336.29563359,0.00011721,2]
[400343873,1767400232704,-500.0,0.00011721,2]
[400343874,1767400232714,-500.0,0.00011721,2]
[400343875,1767400232723,-500.0,0.00011721,2]
[400343876,1767400232733,-500.0,0.00011721,2]
[400343877,1767400232743,-500.0,0.00011721,2]
[400343878,1767400232752,-500.0,0.00011721,2]
[400343879,1767400232762,-500.0,0.00011721,2]
[400343880,1767400232771,-500.0,0.00011721,2]
[400343881,1767400232781,-500.0,0.00011721,2]
[400343882,1767400232792,-500.0,0.00011721,2]
[400343883,1767400232801,-500.0,0.00011721,2]
[400343884,1767400232815,-500.0,0.00011721,2]
[400343885,1767400232825,-500.0,0.00011721,2]
[400343886,1767400232836,-500.0,0.00011721,2]
[400343887,1767400232845,-500.0,0.00011721,2]
[400343888,1767400232855,-500.0,0.00011721,2]
[400343889,1767400232865,-500.0,0.00011721,2]
[400343890,1767400232875,-500.0,0.00011721,2]
[400343891,1767400232884,-500.0,0.00011721,2]
[400343892,1767400232894,-500.0,0.00011721,2]
[400343893,1767400232904,-500.0,0.00011721,2]
[400343894,1767400232914,-500.0,0.00011721,2]
[400343895,1767400232923,-500.0,0.00011721,2]
[400343896,1767400232932,-500.0,0.00011721,2]
[400343897,1767400232942,-500.0,0.00011721,2]
[400343898,1767400232952,-500.0,0.00011721,2]
[400343899,1767400232961,-500.0,0.00011721,2]
[400343900,1767400232971,-397.790013,0.00011721,2]
[400343901,1767400232980,-500.0,0.00011721,2]
[400343902,1767400232990,-500.0,0.00011721,2]
[400343903,1767400233000,-500.0,0.00011721,2]
[400343904,1767400233010,-500.0,0.00011721,2]
[400343905,1767400233020,-500.0,0.00011721,2]
[400343906,1767400233034,-500.0,0.00011721,2]
[400343907,1767400233043,-500.0,0.00011721,2]
[400343908,1767400233053,-500.0,0.00011721,2]
[400343909,1767400233063,-500.0,0.00011721,2]
[400343910,1767400233073,-500.0,0.00011721,2]
[400343911,1767400233083,-500.0,0.00011721,2]
[400343912,1767400233093,-500.0,0.00011721,2]
[400343913,1767400233106,-500.0,0.00011721,2]
[400343914,1767400233117,-500.0,0.00011721,2]
[400343915,1767400233128,-500.0,0.00011721,2]
[400343916,1767400233138,-485.40694351,0.00011721,2]
[400343917,1767400233152,-500.0,0.00011721,2]
[400343918,1767400233163,-500.0,0.00011721,2]
[400343919,1767400233175,-194.70022461,0.00011721,2]
[400343920,1767400233186,-500.0,0.00011721,2]
[400343921,1767400233197,-500.0,0.00011721,2]
[400343922,1767400233207,-500.0,0.00011721,2]
[400343923,1767400233217,-500.0,0.00011721,2]
[400343924,1767400233227,-500.0,0.00011721,2]
[400343925,1767400233238,-500.0,0.00011721,2]
[400343926,1767400233248,-500.0,0.00011721,2]
[400343927,1767400233258,-500.0,0.00011721,2]
[400343928,1767400233268,-500.0,0.00011721,2]
[400343929,1767400233279,-500.0,0.00011721,2]
[400343930,1767400233289,-500.0,0.00011721,2]
[400343931,1767400233299,-500.0,0.00011721,2]
[400343932,1767400233309,-500.0,0.00011721,2]
[400343933,1767400233320,-500.0,0.00011721,2]
[400343934,1767400233330,-500.0,0.00011721,2]
[400343935,1767400233340,-500.0,0.00011721,2]
[400343936,1767400233468,-187.98306596,0.00011721,2]
[400343937,1767400233478,-284.65710748,0.00011721,2]
[400343938,1767400233509,-215.34289252,0.00011721,2]
[400343939,1767400233519,-500.0,0.00011721,2]
[400343940,1767400233529,-500.0,0.00011721,2]
[400343941,1767400233540,-444.72833293,0.00011721,2]
[400343942,1767400233551,-55.27166707,0.00011721,2]
[400343943,1767400233561,-500.0,0.00011721,2]
[400343944,1767400233571,-289.58227269,0.00011721,2]
[400343981,1767400238681,-210.41772731,0.00011721,2]
[400343983,1767400238691,-568.79830659,0.00011721,2]
[400343985,1767400238701,-500.0,0.00011721,2]
[400343986,1767400238711,-500.0,0.00011721,2]
[400343988,1767400238720,-296.65319841,0.00011721,2]
[400344087,1767400246653,-388.51668446,0.00011604,2]
[400344088,1767400246665,-1193.04204741,0.00011604,2]
[400344115,1767401177754,300.0,9.757e-05,2]
[400344118,1767401247097,5000.0,9.757e-05,2]
[400344119,1767401263823,5000.0,9.757e-05,2]
[400344120,1767401271595,5000.0,9.757e-05,2]
[400344122,1767401295734,5000.0,9.757e-05,2]
[400344123,1767401318328,5000.0,9.757e-05,2]
[400344125,1767401341321,5000.0,9.757e-05,2]
[400344127,1767401365685,5000.0,9.757e-05,2]
[400344130,1767401389109,5000.0,9.757e-05,2]
[400344131,1767401412509,5000.0,9.757e-05,2]
[400344178,1767401431551,-559.0,9.904e-05,2]
[400344180,1767401431561,-162.6839764,9.904e-05,2]
[400344183,1767401431570,-56.80277938,9.97e-05,2]
[400344185,1767401431583,-207.13678173,9.97e-05,2]
[400344186,1767401431592,-160.39,0.0001,2]
[400344187,1767401431602,-160.39,0.000102,2]
[400344188,1767401431611,-329.56670082,0.00010772,2]
[400344189,1767401431623,-412.78672508,0.00010772,2]
[400344190,1767401431633,-38.60723697,0.00011075,2]
[400344191,1767401431646,-335.02276303,0.00011075,2]
[400344192,1767401431654,-2773.56790519,0.00011469,2]
[400344193,1767401431664,-2190.84903238,0.0001159,2]
[400344194,1767401431674,-151.63027739,0.00011614,2]
[400344195,1767401431684,-160.0,0.00011614,2]
[400344196,1767401431694,-160.0,0.00011614,2]
[400344197,1767401431704,-250.0,0.00011614,2]
[400344199,1767401431714,-151.85926051,0.00011614,2]
[400344200,1767401431723,-250.0,0.00011614,2]
[400344202,1767401431734,-250.0,0.00011614,2]
[400344204,1767401431744,-250.0,0.00011614,2]
[400344205,1767401431754,-250.0,0.00011614,2]
[400344206,1767401431763,-250.0,0.00011614,2]
[400344207,1767401431773,-250.0,0.00011614,2]
[400344208,1767401431782,-250.0,0.00011614,2]
[400344209,1767401431792,-250.0,0.00011614,2]
[400344210,1767401431801,-250.0,0.00011614,2]
[400344211,1767401431811,-250.0,0.00011614,2]
[400344212,1767401431821,-250.0,0.00011614,2]
[400344213,1767401431830,-151.0,0.00011614,2]
[400344214,1767401431839,-380.86182314,0.00011614,2]
[400344215,1767401431851,-193.26673323,0.00011614,2]
[400344216,1767401431861,-300.0,0.00011619,2]
[400344217,1767401431870,-124.87159468,0.0001162,2]
[400344239,1767401437778,-2635.25177382,0.00011333,2]
[400344252,1767401437903,-2364.74822618,0.00011333,2]
[400344254,1767401437918,-500.0,0.00011447,2]
[400344257,1767401437927,-569.00000001,0.00011584,2]
[400344259,1767401437937,-151.0,0.00011614,2]
[400344260,1767401437946,-375.12840532,0.0001162,2]
[400344262,1767401437955,-500.0,0.0001162,2]
[400344264,1767401437965,-500.0,0.0001162,2]
[400344265,1767401437975,-212.80405886,0.0001162,2]
[400344267,1767401437984,-500.0,0.0001162,2]
[400344269,1767401437994,-500.0,0.0001162,2]
[400344271,1767401438003,-500.0,0.0001162,2]
[400344272,1767401438012,-500.0,0.0001162,2]
[400344273,1767401438022,-500.0,0.0001162,2]
[400344274,1767401438031,-389.78486046,0.0001162,2]
[400344275,1767401438040,-500.0,0.0001162,2]
[400344276,1767401438050,-500.0,0.0001162,2]
[400344277,1767401438060,-500.0,0.0001162,2]
[400344278,1767401438070,-500.0,0.0001162,2]
[400344279,1767401438080,-500.0,0.0001162,2]
[400344280,1767401438090,-500.0,0.0001162,2]
[400344281,1767401438099,-500.0,0.0001162,2]
[400344282,1767401438109,-500.0,0.0001162,2]
[400344283,1767401438119,-500.0,0.0001162,2]
[400344284,1767401438129,-500.0,0.0001162,2]
[400344285,1767401438138,-494.2283874,0.0001162,2]
[400344286,1767401438150,-5.7716126,0.0001162,2]
[400344287,1767401438160,-500.0,0.0001162,2]
[400344288,1767401438169,-500.0,0.0001162,2]
[400344289,1767401438179,-500.0,0.0001162,2]
[400344290,1767401438189,-500.0,0.0001162,2]
[400344291,1767401438199,-500.0,0.0001162,2]
[400344292,1767401438208,-616.33451498,0.0001162,2]
[400344293,1767401438218,-500.0,0.0001162,2]
[400344294,1767401438228,-500.0,0.0001162,2]
[400344295,1767401438239,-500.0,0.0001162,2]
[400344296,1767401438250,-389.93480612,0.0001162,2]
[400344307,1767401439827,-71.98152823,0.0001162,2]
[400344309,1767401439837,-197.26585477,0.0001162,2]
[400344745,1767402134809,-359.0,0.00010649,2]
[400344810,1767402459338,362.1314,0.00028767,120]
[400344824,1767402483851,220.48,6.993e-05,2]
[400344985,1767402638227,-415.36916342,0.00010123,2]
[400344986,1767402638238,-954.50930635,0.00010123,2]
[400344987,1767402638250,-1008.19331332,0.00010123,2]
[400345028,1767402640039,-263.259,0.00010123,2]
[400345035,1767402640096,-303.59,0.00010123,2]
[400345378,1767402645990,-251.17,0.00010123,2]
[400345386,1767403046873,232.72666921,9.547e-05,2]
[400345387,1767403111843,243.60676468,0.00023394,120]
[400345388,1767403170788,336.63611642,9.547e-05,2]
[400345389,1767403173364,384.72699019,9.547e-05,2]
[400345390,1767403176129,600.53478625,9.547e-05,2]
[400345391,1767403206539,159.0,0.00025781,120]
[400345392,1767403207825,159.0,0.0002707,120]
[400345393,1767403209134,159.0,0.00028424,120]
[400345396,1767403268687,5000.0,0.00011,10]
[400345398,1767403291736,5000.0,9.757e-05,2]
[400345401,1767403315763,5000.0,9.757e-05,2]
[400345402,1767403339102,5000.0,9.757e-05,2]
[400345403,1767403361995,5000.0,9.757e-05,2]
[400345404,1767403386298,5000.0,9.757e-05,2]
[400345405,1767403410523,5000.0,9.757e-05,2]
[400345406,1767403434890,5000.0,9.757e-05,2]
[400345407,1767403438140,700.49934874,0.0002876,120]
[400345408,1767403458424,4568.21993408,0.00011,10]
[400345414,1767403582769,888.5781969,9.52e-05,2]
[400345415,1767403662811,5000.0,9.757e-05,2]
[400345417,1767403685686,5000.0,9.757e-05,2]
[400345420,1767403722079,8260.88869785,7.3e-05,2]
[400345421,1767403730865,2345.84055999,9.757e-05,2]
[400345478,1767403832305,-558.0,9.885e-05,2]
[400345479,1767403832316,-275.39630499,9.91e-05,2]
[400345480,1767403832326,-155.54873329,9.999e-05,2]
[400345481,1767403832338,-144.45126671,9.999e-05,2]
[400345482,1767403832348,-300.0,9.999e-05,2]
[400345483,1767403832358,-134.86104899,9.999e-05,2]
[400345484,1767403832370,-165.13895101,9.999e-05,2]
[400345485,1767403832379,-288.95449607,0.0001,2]
[400345486,1767403832390,-6998.44939984,0.0001,2]
[400345487,1767403832400,-510.12939453,0.00010226,2]
[400345488,1767403832418,-262.08538147,0.00010226,2]
[400345489,1767403832428,-250.0,0.00010245,2]
[400345490,1767403832438,-1200.0,0.00010572,2]
[400345491,1767403832448,-184.21022884,0.00010572,2]
[400345492,1767403832458,-500.0,0.00010572,2]
[400345493,1767403832468,-500.0,0.00010572,2]
[400345494,1767403832478,-500.0,0.00010572,2]
[400345495,1767403832488,-500.0,0.00010572,2]
[400345496,1767403832498,-500.0,0.00010572,2]
[400345497,1767403832508,-500.0,0.00010572,2]
[400345498,1767403832518,-500.0,0.00010572,2]
[400345499,1767403832528,-500.0,0.00010572,2]
[400345500,1767403832538,-500.0,0.00010572,2]
[400345501,1767403832547,-500.0,0.00010572,2]
[400345502,1767403832557,-500.0,0.00010572,2]
[400345503,1767403832567,-500.0,0.00010572,2]
[400345504,1767403832577,-500.0,0.00010572,2]
[400345505,1767403832587,-386.48372516,0.00010572,2]
[400345506,1767403832597,-50000.0,0.00010573,2]
[400345507,1767403832607,-500.0,0.00010574,2]
[400345508,1767403832617,-503.64606496,0.00010848,2]
[400345509,1767403832628,-2242.59364885,0.00010936,2]
[400345510,1767403832638,-1174.4914315,0.00010959,2]
[400345511,1767403832648,-500.0,0.00010959,2]
[400345512,1767403832657,-500.0,0.00010959,2]
[400345513,1767403832667,-164.37797187,0.00010959,2]
[400345514,1767403832677,-500.0,0.00010959,2]
[400345515,1767403832687,-500.0,0.00010959,2]
[400345516,1767403832697,-500.0,0.00010959,2]
[400345517,1767403832707,-297.0,0.00010999,2]
[400345518,1767403832716,-420.0,0.00010999,2]
[400345519,1767403832726,-427.54,0.00011023,2]
[400345520,1767403832736,-1286.91788281,0.00011126,2]
[400345521,1767403832746,-2164.160111,0.00011363,2]
[400345522,1767403832756,-1623.6622327,0.00011363,2]
[400345523,1767403832766,-51101.2999297,0.00011363,2]
[400345524,1767403832775,-161.07266942,0.00011411,2]
[400345525,1767403832786,-253.12300422,0.00011411,2]
[400345526,1767403832796,-176.25411543,0.00011411,2]
[400345527,1767403832805,-876.39021537,0.00011433,2]
[400345528,1767403832815,-160.0,0.00011446,2]
[400345529,1767403832825,-250.0,0.00011446,2]
[400345530,1767403832835,-250.0,0.00011446,2]
[400345531,1767403832844,-574.12855637,0.00011446,2]
[400345532,1767403832854,-250.0,0.00011446,2]
[400345533,1767403832864,-250.0,0.00011446,2]
[400345534,1767403832873,-250.0,0.00011446,2]
[400345535,1767403832884,-250.0,0.00011446,2]
[400345536,1767403832893,-250.0,0.00011446,2]
[400345537,1767403832903,-250.0,0.00011446,2]
[400345538,1767403832914,-1000.0,0.00011446,2]
[400345539,1767403832924,-250.0,0.00011446,2]
[400345540,1767403832934,-880.5931858,0.00011446,2]
[400345541,1767403832943,-250.0,0.00011446,2]
[400345542,1767403832953,-250.0,0.00011446,2]
[400345543,1767403832962,-250.0,0.00011446,2]
[400345544,1767403832972,-250.0,0.00011446,2]
[400345545,1767403832981,-250.0,0.00011446,2]
[400345546,1767403832991,-256.3338665,0.00011446,2]
[400345547,1767403833001,-151.0,0.000115,2]
[400345548,1767403833011,-1095.4056674,0.00011541,2]
[400345549,1767403833021,-1680.0,0.00011622,2]
[400345550,1767403833032,-151.0,0.000117,2]
[400345551,1767403833042,-156.68422812,0.00011874,2]
[400345552,1767403833052,-4316.13661683,0.00011884,2]
[400345553,1767403833062,-324.96763988,0.0001191,2]
[400345554,1767403833072,-500.0,0.00011955,2]
[400345555,1767403833082,-595.37131296,0.00011994,2]
[400345556,1767403833092,-151.0,0.00012,2]
[400345557,1767403833102,-700.0,0.00012,5]
[400345558,1767403833112,-514.47,0.00012002,2]
[400345559,1767403833123,-1286.91788277,0.00012018,2]
[400345560,1767403833135,-855.07,0.00012025,2]
[400345561,1767403833146,-1041.66666667,0.00012094,2]
[400345562,1767403833156,-587.0,0.00012099,2]
[400345563,1767403833166,-776.0,0.000121,2]
[400345564,1767403833179,-600.0,0.00012161,2]
[400345565,1767403833189,-151.0,0.000123,2]
[400345566,1767403833199,-7515.37,0.00012329,2]
[400345567,1767403833209,-6262.81,0.00012329,2]
[400345568,1767403833221,-5219.01,0.00012329,2]
[400345569,1767403833231,-4349.17,0.00012329,2]
[400345570,1767403833241,-3624.31,0.00012329,2]
[400345571,1767403833251,-3020.26,0.00012329,2]
[400345572,1767403833260,-2516.88,0.00012329,2]
[400345573,1767403833269,-2097.4,0.00012329,2]
[400345574,1767403833279,-1747.84,0.00012329,2]
[400345575,1767403833289,-1456.53,0.00012329,2]
[400345576,1767403833299,-1213.77,0.00012329,2]
[400345577,1767403833311,-1011.48,0.00012329,2]
[400345578,1767403833322,-842.9,0.00012329,2]
[400345579,1767403833331,-702.42,0.00012329,2]
[400345580,1767403833340,-585.35,0.00012329,2]
[400345581,1767403833350,-487.79,0.00012329,2]
[400345582,1767403833359,-406.49,0.00012329,2]
[400345583,1767403833472,-338.74,0.00012329,2]
[400345584,1767403833483,-282.28,0.00012329,2]
[400345585,1767403833492,-235.24,0.00012329,2]
[400345586,1767403833502,-196.03,0.00012329,2]
[400345587,1767403833511,-163.36,0.00012329,2]
[400345588,1767403833522,-816.82,0.00012329,2]
[400345589,1767403833531,-617.40005154,0.00012542,2]
[400345590,1767403833541,-160.34,0.0001255,2]
[400345591,1767403833551,-151.0,0.000126,2]
[400345592,1767403833560,-1623.6622327,0.00012637,2]
[400345593,1767403833569,-1200.0,0.00012777,2]
[400345594,1767403833578,-151.0,0.000128,2]
[400345595,1767403833588,-3844.29347916,0.0001287,2]
[400345623,1767403838648,-500.0,0.00010571,2]
[400345624,1767403838658,-500.0,0.00010571,2]
[400345625,1767403838668,-500.0,0.00010571,2]
[400345626,1767403838679,-500.0,0.00010571,2]
[400345627,1767403838689,-500.0,0.00010571,2]
[400345628,1767403838699,-452.30112046,0.00010571,2]
[400345629,1767403838709,-453.56761303,0.00010571,2]
[400345630,1767403838719,-500.0,0.00010571,2]
[400345631,1767403838728,-500.0,0.00010571,2]
[400345632,1767403838737,-500.0,0.00010571,2]
[400345633,1767403838747,-301.308305,0.00010571,2]
[400345634,1767403838757,-178.44032566,0.00010571,2]
[400345635,1767403838766,-500.0,0.00010571,2]
[400345636,1767403838776,-500.0,0.00010571,2]
[400345637,1767403838786,-500.0,0.00010571,2]
[400345638,1767403838796,-500.0,0.00010571,2]
[400345639,1767403838806,-500.0,0.00010571,2]
[400345640,1767403838816,-500.0,0.00010571,2]
[400345641,1767403838826,-500.0,0.00010571,2]
[400345642,1767403838836,-500.0,0.00010571,2]
[400345643,1767403838846,-500.0,0.00010571,2]
[400345644,1767403838856,-500.0,0.00010571,2]
[400345645,1767403838867,-500.0,0.00010571,2]
[400345646,1767403838877,-500.0,0.00010571,2]
[400345647,1767403838887,-500.0,0.00010571,2]
[400345648,1767403838899,-500.0,0.00010571,2]
[400345649,1767403838909,-500.0,0.00010571,2]
[400345650,1767403838919,-500.0,0.00010571,2]
[400345651,1767403838929,-500.0,0.00010571,2]
[400345653,1767403838939,-4672.81849524,0.0001287,2]
[400345654,1767403838948,-726.0,0.00012893,2]
[400345655,1767403838959,-726.0,0.00012893,2]
[400345656,1767403838969,-160.0,0.00012893,2]
[400345657,1767403838979,-160.0,0.00012893,2]
[400345658,1767403838989,-726.0,0.00012893,2]
[400345659,1767403839000,-726.0,0.00012893,2]
[400345660,1767403839011,-726.0,0.00012893,2]
[400345661,1767403839020,-1286.91788277,0.00012911,2]
[400345662,1767403839031,-19999.99999999,0.0001299,2]
[400345663,1767403839042,-1282.61,0.00013027,2]
[400345664,1767403839053,-640.24385345,0.0001309,2]
[400345665,1767403839063,-151.0,0.000131,2]
[400345666,1767403839073,-2475.06134509,0.00013108,10]
[400345667,1767403839084,-606.0,0.00013234,2]
[400345668,1767403839094,-500.0,0.00013273,2]
[400345669,1767403839105,-500.0,0.00013273,2]
[400345670,1767403839115,-500.0,0.00013273,2]
[400345671,1767403839125,-500.0,0.00013273,2]
[400345672,1767403839136,-500.57608877,0.00013273,2]
[400345673,1767403839151,-500.0,0.00013273,2]
[400345674,1767403839161,-30.55059292,0.00013273,2]
[400345682,1767403840341,-469.44940708,0.00013273,2]
[400345684,1767403840351,-181.31318779,0.00013273,2]
[400345695,1767403840452,-318.68681221,0.00013273,2]
[400345697,1767403840461,-500.0,0.00013273,2]
[400345698,1767403840471,-500.0,0.00013273,2]
[400345699,1767403840480,-500.0,0.00013273,2]
[400345700,1767403840490,-500.0,0.00013273,2]
[400345701,1767403840500,-500.0,0.00013273,2]
[400345702,1767403840510,-500.0,0.00013273,2]
[400345703,1767403840519,-500.0,0.00013273,2]
[400345704,1767403840529,-500.0,0.00013273,2]
[400345705,1767403840539,-500.0,0.00013273,2]
[400345706,1767403840548,-500.0,0.00013273,2]
[400345707,1767403840558,-500.0,0.00013273,2]
[400345708,1767403840568,-500.0,0.00013273,2]
[400345709,1767403840577,-533.60465968,0.00013273,2]
[400345710,1767403840587,-500.0,0.00013273,2]
[400345711,1767403840596,-500.0,0.00013273,2]
[400345712,1767403840606,-502.38228513,0.00013273,2]
[400345713,1767403840615,-331.27546553,0.00013273,2]
[400345714,1767403840627,-168.72453447,0.00013273,2]
[400345715,1767403840638,-82.04653098,0.00013273,2]
[400346261,1767405032949,-263.78459439,0.00011066,2]
[400346262,1767405032968,-518.49,0.00011085,2]
[400346263,1767405032985,-21.74451733,0.00011629,2]
[400346264,1767405033013,-478.25548267,0.00011629,2]
[400346265,1767405033024,-1041.66666667,0.00011749,2]
[400346266,1767405033035,-1036.99,0.00012093,2]
[400346267,1767405033045,-419.184,0.00012122,2]
[400346268,1767405033056,-300.0,0.00012907,2]
[400346269,1767405033067,-3258.5986966,0.00012908,2]
[400346270,1767405033077,-1935.4121468,0.00012908,2]
[400346271,1767405033088,-131.99100878,0.00012978,2]
[400346272,1767405033120,-4624.983028,0.00012978,2]
[400346278,1767405038380,-657.04325237,0.00012978,2]
[400346279,1767405038393,-2000.0,0.00012978,2]
[400346280,1767405038435,-3637.14683615,0.00012978,2]
[400346281,1767405038445,-391.8779348,0.00012978,2]
[400346282,1767405038455,-170.91561872,0.00012978,2]
[400346283,1767405038465,-307.64811369,0.00012978,2]
[400346284,1767405038474,-546.92997989,0.00012978,2]
[400346285,1767405038484,-380.02702031,0.00012999,2]
[400346286,1767405038494,-329.76798552,0.00013,2]
[400346287,1767405038504,-656.37333447,0.00013,2]
[400346288,1767405038514,-6300.02187217,0.00013,2]
[400346289,1767405038525,-3650.88816051,0.00013008,2]
[400346290,1767405038535,-173.656,0.00013008,2]
[400346291,1767405038545,-9823.66700572,0.00013008,2]
[400346292,1767405038556,-311.26582138,0.00013066,2]
[400346293,1767405038567,-500.0,0.00013071,2]
[400346294,1767405038577,-500.0,0.00013071,2]
[400346295,1767405038588,-500.0,0.00013071,2]
[400346296,1767405038599,-501.85693972,0.00013071,2]
[400346297,1767405038610,-500.0,0.00013071,2]
[400346298,1767405038621,-500.0,0.00013071,2]
[400346299,1767405038631,-368.53323458,0.00013071,2]
[400346300,1767405038642,-500.0,0.00013071,2]